bitfinex/quotes_BTCUSD_20240810
["timestamp","ask_amount","ask_price","bid_price","bid_amount"]
[1723263361824,0.3097768,60376.0,60375.0,0.11938999]
[1723263362235,0.6410338,60376.0,60375.0,0.11938999]
[1723263362624,0.3097768,60376.0,60375.0,0.11938999]
[1723263364164,0.1441488,60376.0,60375.0,0.11938999]
[1723263364366,0.3097768,60376.0,60375.0,0.11938999]
[1723263365163,0.3047768,60376.0,60375.0,0.11938999]
[1723263365367,0.3047768,60376.0,60375.0,0.11981841]
[1723263365785,0.1391488,60376.0,60375.0,0.006]
[1723263366031,0.1391488,60376.0,60375.0,0.11986685]
[1723263367201,0.138932,60376.0,60375.0,0.44931277]
[1723263370021,0.138932,60376.0,60375.0,0.28368177]
[1723263372168,0.138932,60376.0,60375.0,0.16981492]
[1723263372335,0.138932,60376.0,60375.0,0.28351319]
[1723263373347,0.138932,60376.0,60375.0,0.28442729]
[1723263373555,0.058132,60376.0,60375.0,0.28442729]
[1723263373777,0.058132,60376.0,60375.0,0.78132029]
[1723263374004,0.000832,60376.0,60375.0,1.30948229]
[1723263374211,0.000832,60376.0,60375.0,1.43933526]
[1723263374446,0.000832,60376.0,60375.0,1.44933526]
[1723263374665,0.000832,60376.0,60375.0,1.43933526]
[1723263375100,0.000832,60376.0,60375.0,1.43633526]
[1723263375316,0.000832,60376.0,60375.0,1.4533352]
[1723263375556,0.000832,60376.0,60375.0,1.4643352]
[1723263375778,0.000832,60376.0,60375.0,1.42487442]
[1723263375961,0.000832,60376.0,60375.0,1.35059918]
[1723263376181,0.000832,60376.0,60375.0,1.4249881]
[1723263376438,0.000832,60376.0,60375.0,1.4159881]
[1723263376901,0.000832,60376.0,60375.0,1.4189881]
[1723263377352,0.000832,60376.0,60375.0,1.41601546]
[1723263377574,0.000832,60376.0,60375.0,1.35826347]
[1723263377789,0.000832,60376.0,60375.0,1.29587279]
[1723263378459,0.000832,60376.0,60375.0,1.3702786]
[1723263378680,0.000832,60376.0,60375.0,1.29587279]
[1723263378903,0.000832,60376.0,60375.0,1.36462484]
[1723263379126,0.000832,60376.0,60375.0,1.48860931]
[1723263379348,0.000832,60376.0,60375.0,1.4887477]
[1723263380678,0.000832,60376.0,60375.0,1.48880593]
[1723263381788,0.000832,60376.0,60375.0,1.48680593]
[1723263382022,0.000832,60376.0,60375.0,1.30167654]
[1723263382238,0.000832,60376.0,60375.0,1.41569955]
[1723263382685,0.000832,60376.0,60375.0,0.80866472]
[1723263382901,0.000832,60376.0,60375.0,0.89776849]
[1723263383550,0.000832,60376.0,60375.0,0.79850953]
[1723263385244,0.000832,60376.0,60375.0,0.46724753]
[1723263385439,0.000832,60376.0,60375.0,0.30161653]
[1723263385440,0.061332,60376.0,60375.0,0.30161653]
[1723263386068,0.061332,60376.0,60375.0,0.35336002]
[1723263386265,0.061332,60376.0,60375.0,0.46678193]
[1723263386712,0.061332,60376.0,60375.0,0.46676946]
[1723263386832,0.061332,60376.0,60375.0,0.30113846]
[1723263387660,0.061332,60376.0,60375.0,0.46676946]
[1723263390654,0.061332,60376.0,60375.0,0.30113846]
[1723263391306,0.061332,60376.0,60375.0,0.30131918]
[1723263393271,0.061332,60376.0,60375.0,0.30142947]
[1723263393949,0.000832,60376.0,60375.0,0.46706047]
[1723263395802,0.144132,60376.0,60375.0,0.46706047]
[1723263396673,0.144132,60376.0,60375.0,0.35336002]
[1723263396885,0.144132,60376.0,60375.0,0.46703535]
[1723263398963,0.144132,60376.0,60375.0,0.46694166]
[1723263399449,0.061332,60376.0,60375.0,0.46694166]
[1723263399666,0.000832,60376.0,60375.0,0.79820366]
[1723263400365,0.000832,60376.0,60375.0,1.20916566]
[1723263400579,0.000832,60376.0,60375.0,1.28392338]
[1723263402149,0.000832,60376.0,60375.0,1.20943125]
[1723263403979,0.000832,60376.0,60375.0,1.09558402]
[1723263404238,0.000832,60376.0,60375.0,0.7982501]
[1723263404470,0.000832,60376.0,60375.0,0.87274473]
[1723263405850,0.065132,60376.0,60375.0,0.87274473]
[1723263408109,0.065132,60376.0,60375.0,0.87284852]
[1723263408355,0.146232,60376.0,60375.0,0.30146089]
[1723263409262,0.146232,60376.0,60375.0,0.30167088]
[1723263409477,0.146232,60376.0,60375.0,0.46730188]
[1723263411282,0.146232,60376.0,60375.0,0.46736616]
[1723263411743,0.146232,60376.0,60375.0,0.30173516]
[1723263412405,0.146232,60376.0,60375.0,0.46736616]
[1723263413824,0.146232,60376.0,60375.0,0.30173516]
[1723263414046,0.6433338,60376.0,60375.0,0.30173516]
[1723263414526,0.64312263,60376.0,60375.0,0.30173516]
[1723263414960,0.64312263,60376.0,60375.0,0.13792024]
[1723263418252,0.64312263,60376.0,60375.0,0.1379526]
[1723263418490,0.97437963,60376.0,60375.0,0.1379526]
[1723263419896,0.97437963,60376.0,60375.0,0.0239141]
[1723263420119,0.97437963,60376.0,60375.0,0.1380289]
[1723263420351,0.97437963,60376.0,60375.0,0.0239141]
[1723263420572,0.97437963,60376.0,60375.0,0.13805683]
[1723263421061,0.97437963,60376.0,60375.0,0.0239141]
[1723263421567,0.97437963,60376.0,60375.0,0.12614587]
[1723263421996,0.97437963,60376.0,60375.0,0.11714587]
[1723263422231,0.97437963,60376.0,60375.0,0.12014587]
[1723263424207,0.97437963,60376.0,60375.0,0.0059141]
[1723263424432,0.97437963,60376.0,60375.0,0.11985954]
[1723263426476,0.97437963,60376.0,60375.0,0.0059141]
[1723263426691,0.97437963,60376.0,60375.0,0.11950471]
[1723263426921,0.97437963,60376.0,60375.0,0.11650471]
[1723263427146,1.00433231,60376.0,60375.0,0.0009141]
[1723263427393,1.11823231,60376.0,60375.0,0.0019141]
[1723263427821,1.41953663,60376.0,60375.0,0.0019141]
[1723263428073,1.44944929,60376.0,60375.0,0.0019141]
[1723263428729,1.45044929,60376.0,60375.0,0.0019141]
[1723263428972,1.11919229,60376.0,60375.0,0.0009141]
[1723263429392,1.11919229,60376.0,60375.0,0.0019141]
[1723263429873,1.11919229,60376.0,60375.0,0.0009141]
[1723263430101,1.12119229,60376.0,60375.0,0.0009141]
[1723263431384,1.12118529,60376.0,60375.0,0.0009141]
[1723263435805,1.00728529,60376.0,60375.0,0.0009141]
[1723263436240,0.97737963,60376.0,60375.0,0.11474541]
[1723263436448,0.89627963,60376.0,60375.0,0.11474541]
[1723263437543,0.89527963,60376.0,60375.0,0.11474541]
[1723263438177,0.56402263,60376.0,60375.0,0.11463189]
[1723263438415,0.56202263,60376.0,60375.0,0.0009141]
[1723263438633,0.56202263,60376.0,60375.0,0.11563161]
[1723263438902,0.56202263,60376.0,60375.0,0.0019141]
[1723263439137,0.56202263,60376.0,60375.0,0.11461755]
[1723263439349,0.49772263,60376.0,60375.0,0.11461755]
[1723263439573,0.49772263,60376.0,60375.0,0.11661755]
[1723263439790,0.49772263,60376.0,60375.0,0.11761755]
[1723263440743,0.00083763,60376.0,60375.0,0.28143247]
[1723263440985,0.16646563,60376.0,60375.0,0.28143247]
[1723263441203,0.49772263,60376.0,60375.0,0.28143247]
[1723263443187,0.49772263,60376.0,60375.0,0.28136916]
[1723263444359,0.55932263,60376.0,60375.0,0.28136916]
[1723263445681,0.55932263,60376.0,60375.0,0.28145909]
[1723263447913,0.49772263,60376.0,60375.0,0.28145909]
[1723263448142,0.49772263,60376.0,60375.0,0.35675909]
[1723263448360,0.00083763,60376.0,60375.0,0.35675909]
[1723263448634,0.00062083,60376.0,60375.0,0.41815909]
[1723263448877,0.00062083,60376.0,60375.0,0.58379009]
[1723263449149,0.00062083,60376.0,60375.0,0.5840786]
[1723263449419,0.00062083,60376.0,60375.0,0.9153406]
[1723263449633,0.00062083,60376.0,60375.0,0.91534025]
[1723263450287,0.00062083,60376.0,60375.0,0.92509764]
[1723263451392,0.00062083,60376.0,60375.0,0.99957567]
[1723263452031,0.00062083,60376.0,60375.0,0.9995899]
[1723263452473,0.00062083,60376.0,60375.0,0.54455228]
[1723263452689,0.00062083,60376.0,60375.0,0.65880373]
[1723263453393,0.00062083,60376.0,60375.0,0.65880381]
[1723263453832,0.00062083,60376.0,60375.0,0.52210381]
[1723263455812,0.00062083,60376.0,60375.0,0.35647281]
[1723263456032,0.00062083,60376.0,60375.0,0.28220746]
[1723263459083,0.00062083,60376.0,60375.0,0.16772902]
[1723263460590,0.00062083,60376.0,60375.0,0.28277472]
[1723263461506,0.00062083,60376.0,60375.0,0.16772902]
[1723263465593,0.00062083,60376.0,60375.0,0.33336002]
[1723263467712,0.00062083,60376.0,60375.0,1.78777568]
[1723263467930,0.00062083,60376.0,60375.0,1.82277568]
[1723263468876,0.00062083,60376.0,60375.0,1.82077568]
[1723263469111,0.00062083,60376.0,60375.0,1.74992922]
[1723263469328,0.00062083,60376.0,60375.0,1.74892922]
[1723263469556,0.00062083,60376.0,60375.0,2.46892922]
[1723263469784,0.00062083,60376.0,60375.0,3.38123084]
[1723263470002,0.00062083,60376.0,60375.0,3.60121441]
[1723263470212,0.00062083,60376.0,60375.0,3.38123084]
[1723263470440,0.00062083,60376.0,60375.0,3.36923084]
[1723263470660,0.00062083,60376.0,60375.0,3.35823084]
[1723263470869,0.00062083,60376.0,60375.0,3.38123084]
[1723263471098,0.00062083,60376.0,60375.0,3.36923084]
[1723263471325,0.00062083,60376.0,60375.0,3.57794491]
[1723263471549,3.0,60383.0,60382.0,1.7812912]
[1723263471774,3.0,60383.0,60382.0,2.35535463]
[1723263472002,3.0,60383.0,60382.0,2.75585054]
[1723263472507,3.0,60383.0,60382.0,2.4917564]
[1723263472719,3.0,60383.0,60382.0,0.95782906]
[1723263472957,3.0,60383.0,60382.0,0.51913589]
[1723263473184,3.3082258,60383.0,60382.0,0.11485255]
[1723263473622,0.0002168,60382.0,60377.0,0.165625]
[1723263473889,0.0002168,60382.0,60379.0,0.165619]
[1723263474115,0.0002168,60382.0,60380.0,0.27868626]
[1723263474336,0.0002168,60382.0,60381.0,0.11490204]
[1723263474560,0.0002168,60382.0,60381.0,0.16381492]
[1723263474982,3.1424,60383.0,60377.0,0.331249]
[1723263474983,0.0647,60378.0,60377.0,0.169625]
[1723263475256,0.0647,60378.0,60377.0,0.44845854]
[1723263475482,0.0647,60378.0,60377.0,0.44445854]
[1723263476133,0.0647,60378.0,60377.0,0.44945854]
[1723263476345,0.0647,60378.0,60377.0,0.78070954]
[1723263476573,0.0647,60378.0,60377.0,0.77570954]
[1723263476788,0.0647,60378.0,60377.0,0.78466886]
[1723263477231,0.0647,60378.0,60377.0,0.78474049]
[1723263477458,0.0647,60378.0,60377.0,0.79374049]
[1723263478329,3.0,60383.0,60382.0,0.496836]
[1723263478553,3.0,60383.0,60382.0,0.87570049]
[1723263478787,3.0,60383.0,60382.0,1.20692449]
[1723263479656,3.0,60383.0,60382.0,1.28872449]
[1723263479863,3.0,60383.0,60382.0,1.29272449]
[1723263480084,3.0,60383.0,60382.0,1.29572449]
[1723263480965,3.0,60383.0,60382.0,1.29272449]
[1723263481428,3.0,60383.0,60382.0,1.62794849]
[1723263482346,3.0,60383.0,60382.0,1.62394849]
[1723263482561,3.0,60383.0,60382.0,1.69204849]
[1723263482783,3.0,60383.0,60382.0,1.69200088]
[1723263483338,3.0,60383.0,60382.0,1.68300088]
[1723263483744,3.0,60383.0,60382.0,1.69300088]
[1723263484170,3.0,60383.0,60382.0,1.70400088]
[1723263484630,3.0,60383.0,60382.0,2.35160808]
[1723263484838,2.98242187,60383.0,60382.0,3.84781307]
[1723263485262,2.96633487,60383.0,60382.0,4.06738521]
[1723263485469,2.96633487,60383.0,60382.0,3.84781307]
[1723263485902,2.88964172,60383.0,60382.0,3.83681307]
[1723263486114,2.88964172,60383.0,60382.0,3.86973172]
[1723263486330,2.88964172,60383.0,60382.0,3.87373172]
[1723263486538,2.88964172,60383.0,60382.0,3.4533074]
[1723263486745,2.88964172,60383.0,60382.0,3.74001224]
[1723263486949,2.88964172,60383.0,60382.0,3.87373154]
[1723263487162,2.88964172,60383.0,60382.0,3.85973154]
[1723263487365,2.88964172,60383.0,60382.0,4.03618576]
[1723263488407,2.88964172,60383.0,60382.0,3.88773154]
[1723263488621,2.88964172,60383.0,60382.0,3.78414875]
[1723263488837,2.88964172,60383.0,60382.0,4.03611308]
[1723263489045,2.88964172,60383.0,60382.0,3.88771631]
[1723263489249,2.88964172,60383.0,60382.0,4.03611323]
[1723263489457,2.88964172,60383.0,60382.0,3.78414875]
[1723263489665,2.88964172,60383.0,60382.0,3.28100012]
[1723263489879,2.88964172,60383.0,60382.0,3.63642893]
[1723263490079,2.88964172,60383.0,60382.0,3.78415232]
[1723263490691,2.89047272,60383.0,60382.0,3.78415232]
[1723263491348,2.89047272,60383.0,60382.0,4.48415232]
[1723263492396,2.89047272,60383.0,60382.0,3.78415232]
[1723263492606,2.89047272,60383.0,60382.0,3.63642893]
[1723263493262,2.89047272,60383.0,60382.0,3.45280707]
[1723263493479,2.89047272,60383.0,60382.0,3.63600028]
[1723263493910,2.89047272,60383.0,60382.0,3.35140028]
[1723263494150,2.89047272,60383.0,60382.0,3.63600028]
[1723263495486,2.89047272,60383.0,60382.0,4.33600028]
[1723263495688,2.89047272,60383.0,60382.0,4.4833178]
[1723263496779,2.89047272,60383.0,60382.0,4.4833198]
[1723263497208,2.89047272,60383.0,60382.0,4.41459588]
[1723263497419,2.89047272,60383.0,60382.0,4.48273401]
[1723263498511,2.89047272,60383.0,60382.0,4.3772222]
[1723263498727,2.89047272,60383.0,60382.0,4.54903226]
[1723263499426,2.89047272,60383.0,60382.0,4.48273426]
[1723263500087,2.89047272,60383.0,60382.0,4.60619216]
[1723263500350,2.89047272,60383.0,60382.0,4.27626808]
[1723263500575,2.89047272,60383.0,60382.0,4.6055718]
[1723263501002,2.89047272,60383.0,60382.0,4.60557153]
[1723263502274,2.89047272,60383.0,60382.0,4.60556637]
[1723263502690,2.89047272,60383.0,60382.0,4.48211363]
[1723263503108,2.89047272,60383.0,60382.0,4.58568603]
[1723263504246,2.89047272,60383.0,60382.0,4.08457252]
[1723263504488,2.89047272,60383.0,60382.0,4.58597767]
[1723263506893,2.89047272,60383.0,60382.0,3.96015367]
[1723263507141,2.89047272,60383.0,60382.0,4.04891309]
[1723263507830,2.89047272,60383.0,60382.0,4.02410587]
[1723263508062,2.89047272,60383.0,60382.0,3.32410587]
[1723263508275,2.89047272,60383.0,60382.0,3.17705507]
[1723263508496,2.89047272,60383.0,60382.0,3.34661176]
[1723263508713,2.89047272,60383.0,60382.0,3.20005507]
[1723263508927,2.89047272,60383.0,60382.0,3.34661176]
[1723263509148,2.89047272,60383.0,60382.0,2.99278284]
[1723263509366,2.89047272,60383.0,60382.0,3.34744014]
[1723263509581,2.89047272,60383.0,60382.0,3.27332463]
[1723263510248,2.89047272,60383.0,60382.0,3.39682684]
[1723263510476,2.89047272,60383.0,60382.0,3.37218776]
[1723263510713,2.89047272,60383.0,60382.0,3.42001307]
[1723263511187,2.89047272,60383.0,60382.0,4.12001307]
[1723263511408,2.89047272,60383.0,60382.0,4.20887202]
[1723263511622,2.89047272,60383.0,60382.0,4.19892885]
[1723263511838,2.89047272,60383.0,60382.0,4.16772885]
[1723263513175,2.89047272,60383.0,60382.0,4.49904417]
[1723263513401,2.73685768,60383.0,60382.0,4.75676143]
[1723263513622,2.67139136,60383.0,60382.0,4.4097184]
[1723263513843,2.63554573,60383.0,60382.0,4.4097184]
[1723263514177,2.63554573,60383.0,60382.0,4.4992014]
[1723263514839,2.63554573,60383.0,60382.0,4.49918851]
[1723263515196,2.63554573,60383.0,60382.0,4.47118851]
[1723263515602,2.63554573,60383.0,60382.0,4.49918851]
[1723263516026,2.63554573,60383.0,60382.0,4.47118851]
[1723263516245,2.63554573,60383.0,60382.0,4.48610261]
[1723263516458,2.63554573,60383.0,60382.0,4.17882106]
[1723263517066,2.63554573,60383.0,60382.0,4.51004506]
[1723263517738,2.50069573,60383.0,60382.0,4.51004506]
[1723263517958,2.50069573,60383.0,60382.0,4.4106196]
[1723263518411,2.50069573,60383.0,60382.0,4.14992089]
[1723263518635,2.33607579,60383.0,60382.0,4.41204683]
[1723263518872,1.56905961,60383.0,60382.0,3.9093887]
[1723263519094,1.56905961,60383.0,60382.0,4.43213664]
[1723263519553,1.56905961,60383.0,60382.0,4.53570499]
[1723263519808,1.56905961,60383.0,60382.0,4.58263956]
[1723263520019,1.43368961,60383.0,60382.0,4.58263956]
[1723263520232,1.04471184,60383.0,60382.0,4.58263956]
[1723263521784,0.000831,60395.0,60394.0,1.80598316]
[1723263522009,0.000831,60395.0,60394.0,3.7732141]
[1723263522264,0.000831,60395.0,60394.0,4.15988506]
[1723263522905,0.000831,60395.0,60394.0,4.17388506]
[1723263523121,0.000831,60395.0,60394.0,4.18788506]
[1723263523799,0.000831,60395.0,60394.0,3.83249808]
[1723263524017,0.000831,60395.0,60394.0,4.18793259]
[1723263525095,0.000831,60395.0,60394.0,4.31167678]
[1723263525330,0.000831,60395.0,60394.0,4.14001456]
[1723263525512,0.000831,60395.0,60394.0,4.3118011]
[1723263525972,0.000831,60395.0,60394.0,4.12815828]
[1723263526239,0.000831,60395.0,60394.0,4.31174636]
[1723263526458,0.000831,60395.0,60394.0,4.1878731]
[1723263527722,0.000831,60395.0,60394.0,4.19764849]
[1723263528978,0.000831,60395.0,60394.0,4.19769737]
[1723263529192,0.000831,60395.0,60394.0,3.49769737]
[1723263529625,0.000831,60395.0,60394.0,3.4976963]
[1723263531404,0.000831,60395.0,60394.0,3.8288543]
[1723263531620,0.000831,60395.0,60394.0,4.08026177]
[1723263532290,0.000831,60395.0,60394.0,4.44910377]
[1723263532521,0.000831,60395.0,60394.0,4.3803906]
[1723263532757,0.000831,60395.0,60394.0,4.44910139]
[1723263533386,0.061631,60395.0,60394.0,4.65473201]
[1723263534062,0.000831,60395.0,60394.0,4.74833201]
[1723263534281,0.000831,60395.0,60394.0,4.81393201]
[1723263534627,0.000831,60395.0,60394.0,5.14506726]
[1723263535686,0.000832,60398.0,60397.0,1.63428116]
[1723263535899,0.000832,60398.0,60397.0,3.10006601]
[1723263536552,0.000832,60398.0,60397.0,3.80006601]
[1723263536760,0.000832,60398.0,60397.0,3.947924]
[1723263537186,0.000832,60398.0,60397.0,3.975924]
[1723263538333,0.000832,60398.0,60397.0,4.307066]
[1723263539376,0.000832,60398.0,60397.0,4.06642572]
[1723263539585,0.000832,60398.0,60397.0,4.30690761]
[1723263540012,0.000832,60398.0,60397.0,3.39304556]
[1723263540222,0.000832,60398.0,60397.0,3.04843856]
[1723263540898,0.000832,60398.0,60397.0,3.0278496]
[1723263541143,0.000832,60398.0,60397.0,3.0478496]
[1723263541583,0.000832,60398.0,60397.0,3.74780996]
[1723263541797,0.000832,60398.0,60397.0,3.04780996]
[1723263542027,0.000832,60398.0,60397.0,2.9790995]
[1723263542243,0.000832,60398.0,60397.0,3.04780995]
[1723263544238,0.000832,60398.0,60397.0,3.04839891]
[1723263544455,0.000832,60398.0,60397.0,3.74839891]
[1723263544657,0.000832,60398.0,60397.0,3.89608447]
[1723263545583,0.000832,60398.0,60397.0,3.89644871]
[1723263547286,0.000832,60398.0,60397.0,4.04508236]
[1723263548965,0.000832,60398.0,60397.0,3.78217599]
[1723263549177,0.000832,60398.0,60397.0,3.89735765]
[1723263549400,0.000832,60398.0,60397.0,3.71346263]
[1723263549616,0.000832,60398.0,60397.0,4.04536338]
[1723263550066,0.000832,60398.0,60397.0,4.02477442]
[1723263550275,0.065332,60398.0,60397.0,4.02477442]
[1723263550457,0.065332,60398.0,60397.0,3.89614077]
[1723263551761,0.065332,60398.0,60397.0,3.19672973]
[1723263552694,0.065332,60398.0,60397.0,2.69304556]
[1723263552911,0.065332,60398.0,60397.0,3.1759527]
[1723263553108,0.065332,60398.0,60397.0,3.1959527]
[1723263553764,0.065332,60398.0,60397.0,3.1759527]
[1723263554187,0.065332,60398.0,60397.0,3.1959527]
[1723263554416,0.065332,60398.0,60397.0,3.34461697]
[1723263555287,0.065332,60398.0,60397.0,3.32461697]
[1723263555512,0.065332,60398.0,60397.0,3.34461697]
[1723263555980,0.065332,60398.0,60397.0,3.34520593]
[1723263556205,0.065332,60398.0,60397.0,2.84170983]
[1723263556434,0.065332,60398.0,60397.0,3.19664225]
[1723263559709,0.065332,60398.0,60397.0,3.65645124]
[1723263559924,0.065332,60398.0,60397.0,3.89695317]
[1723263560397,0.065332,60398.0,60397.0,3.8969532]
[1723263561237,0.065332,60398.0,60397.0,3.87636398]
[1723263561445,0.065332,60398.0,60397.0,3.88636398]
[1723263561890,0.065332,60398.0,60397.0,3.88695294]
[1723263562554,0.065332,60398.0,60397.0,3.89695294]
[1723263563503,0.065332,60398.0,60397.0,3.89695317]
[1723263565543,0.065332,60398.0,60397.0,3.19695317]
[1723263565943,0.065332,60398.0,60397.0,3.17695317]
[1723263566151,0.065332,60398.0,60397.0,3.17636421]
[1723263566521,0.065332,60398.0,60397.0,3.17536421]
[1723263566958,0.065332,60398.0,60397.0,3.17675474]
[1723263567858,0.065332,60398.0,60397.0,3.17616578]
[1723263568631,0.065332,60398.0,60397.0,3.89616578]
[1723263568812,0.065332,60398.0,60397.0,3.87675474]
[1723263569686,0.065332,60398.0,60397.0,3.88675474]
[1723263570579,0.065332,60398.0,60397.0,3.87675474]
[1723263570790,0.065332,60398.0,60397.0,3.87616578]
[1723263571254,0.065332,60398.0,60397.0,3.17630571]
[1723263572755,0.065332,60398.0,60397.0,3.17530571]
[1723263573654,0.141132,60398.0,60397.0,2.84416371]
[1723263573838,0.141132,60398.0,60397.0,2.84516371]
[1723263574292,0.141132,60398.0,60397.0,2.51310561]
[1723263574511,0.141132,60398.0,60397.0,2.84524828]
[1723263574995,0.141132,60398.0,60397.0,2.84583724]
[1723263575703,0.141132,60398.0,60397.0,2.84524828]
[1723263575927,0.141132,60398.0,60397.0,2.68524828]
[1723263577861,0.141132,60398.0,60397.0,2.68533113]
[1723263578314,0.141132,60398.0,60397.0,2.70592009]
[1723263578510,0.065332,60398.0,60397.0,2.70592009]
[1723263578785,0.065332,60398.0,60397.0,3.03706209]
[1723263579023,0.065332,60398.0,60397.0,2.70592009]
[1723263580349,0.065332,60398.0,60397.0,3.40592009]
[1723263580584,0.000832,60398.0,60397.0,3.40592009]
[1723263581081,0.000832,60398.0,60397.0,4.15203843]
[1723263581721,0.000832,60398.0,60397.0,3.49675767]
[1723263581952,0.000832,60398.0,60397.0,3.93300152]
[1723263582147,0.000832,60398.0,60397.0,3.90500152]
[1723263582612,0.000832,60398.0,60397.0,3.93300152]
[1723263583024,0.000832,60398.0,60397.0,3.98050152]
[1723263583710,0.000832,60398.0,60397.0,3.96650152]
[1723263583947,0.000832,60398.0,60397.0,3.61016393]
[1723263584169,0.000832,60398.0,60397.0,3.7160377]
[1723263584393,0.000832,60398.0,60397.0,3.83191043]
[1723263584616,0.000832,60398.0,60397.0,3.98055497]
[1723263584827,0.000832,60398.0,60397.0,3.48954556]
[1723263585266,0.000832,60398.0,60397.0,3.82269518]
[1723263585880,0.000832,60398.0,60397.0,3.75398334]
[1723263586115,0.000832,60398.0,60397.0,3.92576296]
[1723263586336,0.000832,60398.0,60397.0,4.1103073]
[1723263586568,0.000832,60398.0,60397.0,4.01842172]
[1723263587009,0.000832,60398.0,60397.0,4.25930579]
[1723263587257,0.000832,60398.0,60397.0,4.19059377]
[1723263587472,0.000832,60398.0,60397.0,3.49059377]
[1723263587678,0.000832,60398.0,60397.0,3.31881372]
[1723263588328,0.000832,60398.0,60397.0,3.05398334]
[1723263589668,0.000832,60398.0,60397.0,3.03398334]
[1723263589901,0.143932,60398.0,60397.0,2.44634134]
[1723263590366,0.143932,60398.0,60397.0,2.84619534]
[1723263590611,0.143932,60398.0,60397.0,3.8110816]
[1723263591502,0.143932,60398.0,60397.0,3.47935064]
[1723263591729,0.143932,60398.0,60397.0,3.47835064]
[1723263592677,0.143932,60398.0,60397.0,3.47935064]
[1723263594255,0.143932,60398.0,60397.0,3.47935525]
[1723263594467,0.143932,60398.0,60397.0,2.77935525]
[1723263596562,0.143932,60398.0,60397.0,2.63053056]
[1723263597853,0.143932,60398.0,60397.0,2.63018184]
[1723263598467,0.143932,60398.0,60397.0,2.8019742]
[1723263598907,0.143932,60398.0,60397.0,2.56179667]
[1723263599112,0.143932,60398.0,60397.0,2.80230597]
[1723263599936,0.143932,60398.0,60397.0,2.79230597]
[1723263600149,0.143932,60398.0,60397.0,2.81230597]
[1723263600359,0.143932,60398.0,60397.0,2.54786819]
[1723263600577,0.143932,60398.0,60397.0,2.52786819]
[1723263601221,0.143932,60398.0,60397.0,2.5277635]
[1723263602483,0.000832,60398.0,60397.0,2.54835246]
[1723263603595,0.000832,60398.0,60397.0,2.66215246]
[1723263604213,0.000832,60398.0,60397.0,2.99329446]
[1723263604425,0.000832,60398.0,60397.0,3.14200549]
[1723263605693,0.000832,60398.0,60397.0,3.84200549]
[1723263605889,0.000832,60398.0,60397.0,4.06204044]
[1723263606159,0.000832,60398.0,60397.0,3.84200549]
[1723263608574,0.000832,60398.0,60397.0,3.8428131]
[1723263608793,0.00832,60406.0,60397.0,3.8428131]
[1723263608794,0.00832,60406.0,60405.0,0.17692116]
[1723263609027,0.00832,60406.0,60405.0,1.9543511]
[1723263609295,0.00832,60406.0,60405.0,3.26762159]
[1723263609514,1e-08,60406.0,60405.0,3.65625956]
[1723263609961,1e-08,60406.0,60405.0,3.75613621]
[1723263610174,1e-08,60406.0,60405.0,3.78413621]
[1723263610388,1e-08,60406.0,60405.0,4.38425956]
[1723263611310,1e-08,60406.0,60405.0,4.37025956]
[1723263611516,1e-08,60406.0,60405.0,4.51853161]
[1723263611734,1e-08,60406.0,60405.0,4.28480712]
[1723263611926,1e-08,60406.0,60405.0,4.29880712]
[1723263612617,1e-08,60406.0,60405.0,4.31280712]
[1723263612829,1e-08,60406.0,60405.0,4.29880712]
[1723263613685,1e-08,60406.0,60405.0,4.31280712]
[1723263614790,1e-08,60406.0,60405.0,4.07236082]
[1723263615004,1e-08,60406.0,60405.0,4.29895983]
[1723263615222,1e-08,60406.0,60405.0,4.31295983]
[1723263617202,0.0666,60422.0,60413.0,0.03137216]
[1723263617416,0.0666,60422.0,60413.0,3.44272783]
[1723263617623,0.0666,60422.0,60413.0,4.11422817]
[1723263617849,0.0666,60422.0,60413.0,4.74350925]
[1723263618482,0.0666,60422.0,60413.0,4.60491042]
[1723263618924,0.0666,60422.0,60413.0,4.79045586]
[1723263619183,0.0666,60422.0,60413.0,4.77645586]
[1723263619395,0.0666,60422.0,60413.0,5.04265556]
[1723263619608,0.0666,60422.0,60413.0,5.05665556]
[1723263620257,0.0666,60422.0,60413.0,5.04265556]
[1723263620489,0.0666,60422.0,60413.0,4.95312871]
[1723263620694,0.0666,60422.0,60413.0,4.78138987]
[1723263621360,0.0666,60422.0,60413.0,4.73623904]
[1723263622729,0.0666,60422.0,60413.0,4.72223904]
[1723263622944,0.0666,60422.0,60413.0,4.70823904]
[1723263623157,0.0666,60422.0,60413.0,4.73623904]
[1723263623607,0.0666,60422.0,60413.0,4.72223904]
[1723263623834,0.0666,60422.0,60413.0,4.87074252]
[1723263624051,0.0666,60422.0,60413.0,4.03623904]
[1723263624239,0.0666,60422.0,60413.0,4.02223904]
[1723263624686,0.0666,60422.0,60413.0,4.18472394]
[1723263625189,0.0666,60422.0,60413.0,4.03623904]
[1723263625415,0.0666,60422.0,60413.0,4.18472295]
[1723263625700,0.0666,60422.0,60413.0,4.34325033]
[1723263625919,0.0666,60422.0,60413.0,4.88453049]
[1723263626335,0.0666,60422.0,60413.0,4.78099724]
[1723263626762,0.0666,60422.0,60421.0,1.18990716]
[1723263627010,0.0666,60422.0,60421.0,3.27103522]
[1723263627220,0.0666,60422.0,60421.0,3.50307655]
[1723263627665,0.00832,60436.0,60428.0,1.18977416]
[1723263627893,0.00832,60436.0,60428.0,2.42223278]
[1723263628137,0.00832,60436.0,60428.0,2.34802455]
[1723263628356,0.0635,60429.0,60428.0,2.44696886]
[1723263628573,0.0635,60429.0,60428.0,2.34802455]
[1723263629026,0.0635,60429.0,60428.0,2.36202455]
[1723263629469,0.0635,60429.0,60428.0,2.43619045]
[1723263629703,0.0635,60429.0,60428.0,2.43596548]
[1723263630390,0.0635,60429.0,60428.0,2.44996548]
[1723263630853,0.0635,60429.0,60428.0,3.57093748]
[1723263631116,0.0635,60429.0,60428.0,3.5956362]
[1723263631572,0.0635,60429.0,60428.0,4.44512974]
[1723263632230,0.0635,60429.0,60428.0,4.41784517]
[1723263632454,0.0635,60429.0,60428.0,4.43181536]
[1723263632694,0.0635,60429.0,60428.0,4.34698055]
[1723263632918,0.0001,60429.0,60428.0,4.34698055]
[1723263633157,0.0001,60429.0,60428.0,4.29898055]
[1723263633399,0.0001,60429.0,60428.0,4.33298055]
[1723263633618,0.0001,60429.0,60428.0,4.4171557]
[1723263634590,0.0001,60429.0,60428.0,4.4311557]
[1723263635236,0.000931,60429.0,60428.0,4.4311557]
[1723263635674,0.000931,60429.0,60428.0,4.43113205]
[1723263636128,0.000931,60429.0,60428.0,4.09581258]
[1723263636361,0.000931,60429.0,60428.0,4.4303846]